bitfinex-derivatives/quotes_SOLF0:USTF0_20250409
["timestamp","ask_amount","ask_price","bid_price","bid_amount"]
[1744220473214,0.06363066,117.18,117.15,0.05882084]
[1744220474612,8.60363066,117.18,117.15,0.05882084]
[1744220474922,43.39834377,117.17,117.06,78.63216838]
[1744220475120,41.82943867,117.11,117.06,78.63216838]
[1744220475309,41.82943867,117.08,117.04,118.10687941]
[1744220475516,41.82943867,117.08,117.02,297.00020992]
[1744220475821,41.82943867,117.05,116.97,115.96681572]
[1744220476121,41.82943867,116.98,116.95,197.14038169]
[1744220476317,41.82943867,116.98,116.95,197.05678169]
[1744220476624,41.82943867,117.03,116.95,197.05678169]
[1744220476816,1.5722353,117.02,116.95,197.05678169]
[1744220477017,0.05871639,116.98,116.95,197.11241366]
[1744220477411,41.82943867,116.97,116.93,148.51817711]
[1744220477623,41.82943867,116.94,116.77,8.6883]
[1744220477819,41.82943867,116.86,116.78,85.5]
[1744220478024,41.82943867,116.86,116.71,553.7]
[1744220478225,41.82943867,116.86,116.75,85.5]
[1744220478406,41.82943867,116.83,116.72,171.0]
[1744220478606,0.05516954,116.82,116.79,0.06513371]
[1744220479012,41.82943867,116.88,116.73,41.82943867]
[1744220479229,41.82943867,116.88,116.78,85.5]
[1744220479409,0.06002637,116.82,116.79,0.05613364]
[1744220479721,0.06002637,116.82,116.73,41.82943867]
[1744220479919,41.82943867,116.88,116.78,85.5]
[1744220480125,1.57380356,116.87,116.79,171.06274971]
[1744220480432,41.82943867,116.9,116.8,85.5]
[1744220480612,41.82943867,116.98,116.83,171.0]
[1744220480813,41.82943867,116.98,116.88,171.0]
[1744220481008,41.82943867,116.98,116.84,41.82943867]
[1744220481009,41.82943867,116.98,116.9,85.5]
[1744220481208,41.82943867,116.92,116.75,55.08353867]
[1744220481421,41.82943867,116.89,116.75,89.28353867]
[1744220481721,41.82943867,116.85,116.77,85.5]
[1744220482025,0.065238,116.83,116.68,8.5762]
[1744220482225,41.82943867,116.81,116.72,85.5]
[1744220482422,554.38,116.82,116.59,41.82943867]
[1744220482423,41.82943867,116.75,116.59,41.82943867]
[1744220482627,41.82943867,116.72,116.63,171.0]
[1744220482822,41.82943867,116.72,116.64,85.5]
[1744220483022,41.82943867,116.72,116.6,171.0]
[1744220483330,0.06504271,116.69,116.59,34.2]
[1744220483516,41.82943867,116.66,116.51,12.946]
[1744220484019,41.82943867,116.66,116.57,171.0]
[1744220484318,41.82943867,116.72,116.59,85.5]
[1744220484525,41.82943867,116.66,116.56,171.0]
[1744220484729,0.0589688,116.63,116.51,47.146]
[1744220484925,0.0589688,116.63,116.55,171.0]
[1744220485129,41.82943867,116.71,116.61,85.5]
[1744220485312,601.45061181,116.75,116.65,171.0]
[1744220485313,1.57643585,116.7,116.65,171.0]
[1744220485514,1.57581215,116.74,116.66,171.0]
[1744220485810,46.53061181,116.75,116.67,171.0]
[1744220486017,41.14266992,116.75,116.74,171.0]
[1744220486322,0.05694101,116.72,116.7,85.5]
[1744220486528,0.05694101,116.72,116.69,85.5]
[1744220486724,93.06122364,116.77,116.71,171.0]
[1744220486926,93.06122364,116.77,116.76,85.5]
[1744220487224,93.06122364,116.77,116.68,4.5552]
[1744220487432,48.46555985,116.76,116.55,46.89031266]
[1744220487728,46.89031266,116.72,116.56,4.5715]
[1744220487929,3.28830928,116.75,116.61,171.0]
[1744220488229,46.89031266,116.68,116.56,4.5715]
[1744220488427,556.65524719,116.67,116.57,85.5]
[1744220488728,1.57524719,116.66,116.62,171.0]
[1744220488916,0.0639315,116.63,116.61,85.56492451]
[1744220489112,1.57644045,116.7,116.61,85.56492451]
[1744220489317,1.57644045,116.69,116.56,4.5715]
[1744220489527,1.57644045,116.68,116.58,171.0]
[1744220489738,48.46675311,116.67,116.44,46.89031266]
[1744220489926,48.46675311,116.67,116.55,85.5]
[1744220489927,556.65644045,116.66,116.55,85.5]
[1744220490128,3.29097109,116.65,116.54,85.5]
[1744220490327,46.89031266,116.63,116.47,9.0478]
[1744220490628,1.64181435,116.62,116.51,85.5]
[1744220490829,1.71453064,116.65,116.56,171.0]
[1744220491018,1.71453064,116.65,116.53,171.0]
[1744220491220,1.57692735,116.64,116.54,171.0]
[1744220491415,1.57692735,116.64,116.58,85.5]
[1744220491617,4.2663,116.7,116.5,0.02]
[1744220491618,46.89031266,116.71,116.61,171.0]
[1744220491919,1.57616575,116.7,116.69,85.5]
[1744220492120,46.89031266,116.79,116.62,13.341]
[1744220492320,46.89031266,116.79,116.73,171.0]
[1744220492321,1.57570172,116.78,116.73,171.0]
[1744220492515,1.57570172,116.78,116.73,85.5]
[1744220492719,1.57570172,116.79,116.77,85.5]
[1744220492920,31.02731274,116.8,116.79,85.5]
[1744220493121,139.59183546,116.83,116.8,171.0]
[1744220493317,139.59183546,116.83,116.81,171.0]
[1744220493631,0.05948807,116.81,116.78,0.05483375]
[1744220494022,0.05948807,116.81,116.79,171.0]
[1744220494223,555.34,116.91,116.8,85.5]
[1744220494533,1.57372086,116.9,116.86,85.5]
[1744220494730,1.57372086,116.9,116.77,46.89031266]
[1744220494731,1.57278628,116.96,116.89,171.0]
[1744220494927,139.59183546,117.07,116.94,85.5]
[1744220494928,555.34,117.05,116.94,85.5]
[1744220495128,555.34,117.05,116.92,85.5]
[1744220495321,555.34,117.05,116.89,85.5]
[1744220495527,46.89031266,116.95,116.72,555.34]
[1744220495729,558.62335682,116.94,116.68,555.34]
[1744220495921,1.57307805,116.93,116.84,85.5]
[1744220496122,1.57307805,116.93,116.85,85.5]
[1744220496322,1.57307805,116.93,116.85,171.0]
[1744220496520,0.05944393,116.9,116.87,85.5]
[1744220496737,0.05944393,116.9,116.88,0.06149208]
[1744220496923,1.71027877,116.94,116.89,171.0]
[1744220497123,46.89031266,117.04,116.93,85.5]
[1744220497324,1.57231358,117.03,116.93,85.5]
[1744220497526,1.57231358,117.02,116.84,46.89031266]
[1744220497726,46.89031266,117.0,116.9,85.5]
[1744220497922,556.77231358,116.99,116.88,171.0]
[1744220498122,1.57231358,116.98,116.87,171.0]
[1744220498331,46.89031266,116.95,116.77,4.3341]
[1744220498529,46.89031266,116.91,116.79,85.5]
[1744220498826,556.77231358,116.9,116.81,85.5]
[1744220499127,1.57231358,116.89,116.82,85.5]
[1744220499526,0.06502861,116.87,116.82,85.5]
[1744220499731,0.06502861,116.87,116.71,555.2]
[1744220500033,0.06502861,116.87,116.8,85.5]
[1744220500224,1.57382053,116.89,116.79,85.5]
[1744220500425,1.57382053,116.88,116.82,85.5]
[1744220500622,1.57382053,116.89,116.88,85.5]
[1744220500830,1.57339394,116.93,116.85,85.5]
[1744220501133,0.06034135,116.9,116.87,0.05892947]
[1744220501329,556.87101035,116.89,116.63,555.16]
[1744220501525,46.89031266,116.87,116.76,85.5]
[1744220501930,556.87101035,116.89,116.64,4.234]
[1744220501931,46.89031266,116.83,116.64,4.234]
[1744220502133,1.57439263,116.82,116.73,85.5]
[1744220502333,1.57439263,116.82,116.72,85.5]
[1744220502334,555.16,116.81,116.72,85.5]
[1744220502638,0.05753667,116.79,116.76,0.05610204]
[1744220502935,1.6319293,116.79,116.76,0.05610204]
[1744220503138,1.57439263,116.79,116.65,4.2818]
[1744220503334,1.57491748,116.78,116.76,0.06226587]
[1744220503547,1.63560927,116.79,116.76,0.06226587]
[1744220503834,1.57503408,116.78,116.65,4.2818]
[1744220504030,1.57503408,116.78,116.76,0.0613612]
[1744220504234,0.06578876,116.79,116.77,85.5]
[1744220504543,0.06578876,116.79,116.65,4.2818]
[1744220504544,57.02532888,116.79,116.65,4.2818]
[1744220504738,1.57501622,116.78,116.65,4.2818]
[1744220505043,46.89031266,116.79,116.68,85.5]
[1744220505232,1.57554637,116.77,116.72,85.5]
[1744220505437,1.71232876,116.8,116.72,85.5]
[1744220505634,48.46571717,116.79,116.61,46.89031266]
[1744220505829,1.57540451,116.78,116.72,85.5]
[1744220506032,0.06065413,116.77,116.75,0.06438518]
[1744220506233,1.63605864,116.77,116.61,46.89031266]
[1744220506440,0.06065413,116.77,116.72,85.5]
[1744220506641,1.57540451,116.78,116.72,85.5]
[1744220506842,1.57540451,116.77,116.65,8.5784]
[1744220507033,1.57540451,116.76,116.72,85.5]
[1744220507239,1.71232876,116.8,116.73,85.5]
[1744220507533,0.05600583,116.75,116.74,85.5]
[1744220507731,1.57511275,116.79,116.75,85.5]
[1744220507939,1.57511275,116.79,116.65,41.99531262]
[1744220508128,0.06072929,116.76,116.73,85.5]
[1744220508333,41.99531262,116.76,116.68,85.5]
[1744220508640,3.28808192,116.75,116.59,46.38751262]
[1744220508833,1.57501983,116.74,116.71,0.05574634]
[1744220509026,1.57501983,116.74,116.69,85.5]
[1744220509231,0.05961166,116.69,116.62,41.99531262]
[1744220509543,1.57501983,116.74,116.59,46.38751262]
[1744220509837,1.71306209,116.75,116.71,85.5]
[1744220510054,46.56701262,116.85,116.74,171.0]
[1744220510226,1.57491661,116.8,116.78,85.5]
[1744220510426,41.99531262,116.88,116.78,85.5]
[1744220510427,1.57491661,116.87,116.78,85.5]
[1744220510627,0.05672057,116.8,116.76,0.06110178]
[1744220510837,43.707788,116.79,116.62,41.99531262]
[1744220511036,1.57440701,116.78,116.7,85.5]
[1744220511237,1.57440701,116.78,116.63,4.4141]
[1744220511542,41.99531262,116.76,116.69,85.5]
[1744220511726,1.57440701,116.75,116.7,85.5]
[1744220511927,41.99531262,116.73,116.66,85.5]
[1744220512132,1.57440701,116.72,116.71,0.06083861]
[1744220512340,1.71247538,116.79,116.73,85.5]
[1744220512644,1.57539335,116.78,116.73,85.5]
[1744220512842,1.57533669,116.77,116.76,85.5]
[1744220513040,0.06297379,116.77,116.71,46.40941262]
[1744220513250,41.99531262,116.85,116.75,0.06352386]
[1744220513444,597.35531262,116.81,116.75,0.06352386]
[1744220513632,1.57461744,116.8,116.76,85.5]
[1744220513837,555.36,116.81,116.78,85.5]
[1744220514341,555.36,116.81,116.7,41.99531262]
[1744220514536,1.5745147,116.8,116.78,0.06080053]
[1744220514748,1.5745147,116.79,116.67,8.5765]
[1744220514939,1.71159606,116.85,116.79,85.5]
[1744220515141,1.57417337,116.84,116.83,171.0]
[1744220515337,1.57384729,116.86,116.81,85.5]
[1744220515542,1.57384729,116.85,116.82,85.5]
[1744220515738,1.57384729,116.86,116.8,85.5]
[1744220515942,1.57384729,116.84,116.74,4.3427]
[1744220516140,0.0544915,116.85,116.83,85.5]
[1744220516452,1.57366285,116.86,116.81,85.5]
[1744220516753,0.06120833,116.85,116.84,85.5]
[1744220516944,0.06120833,116.85,116.83,0.05924062]
[1744220517254,1.57376815,116.86,116.75,4.5953]
[1744220517448,0.05708461,116.85,116.83,0.0568149]
[1744220517748,555.36,116.92,116.85,171.0]
[1744220517949,1.57320983,116.91,116.9,85.5]
[1744220518152,41.99531262,116.97,116.88,85.5]
[1744220518344,0.0653133,116.92,116.85,85.5]
[1744220518535,1.57317666,116.91,116.85,85.5]
[1744220518740,1.57317666,116.93,116.9,85.5]
[1744220518935,0.05911086,116.89,116.87,0.0611025]
[1744220519165,0.05911086,116.89,116.8,4.4533]
[1744220519343,1.57312108,116.89,116.75,4.5953]
[1744220519537,41.99531262,116.87,116.79,85.5]
[1744220519744,1.57312108,116.86,116.79,85.5]
[1744220519946,1.57312108,116.86,116.8,85.5]
[1744220520139,1.57312108,116.85,116.75,4.5953]
[1744220520340,1.57312108,116.88,116.85,85.5]
[1744220520540,41.99531262,116.96,116.88,85.5]
[1744220520858,41.99531262,116.93,116.85,85.5]
[1744220521047,41.99531262,116.87,116.74,4.3427]
[1744220521243,1.57335681,116.86,116.8,85.5]
[1744220521444,41.99531262,116.84,116.74,4.3427]
[1744220521643,42.05058406,116.84,116.82,0.06293498]
[1744220521960,555.28,116.87,116.83,85.5]
[1744220522257,1.57396138,116.86,116.85,171.0]
[1744220522440,1.57396138,116.92,116.84,85.5]
[1744220522646,1.57396138,116.91,116.87,85.5]
[1744220522961,1.5731598,116.9,116.88,85.5]
[1744220523141,0.05806632,116.9,116.85,85.5]
[1744220523347,0.05806632,116.9,116.89,171.0]
[1744220523657,555.28,116.94,116.89,171.0]
[1744220523851,555.28,116.94,116.9,85.5]
[1744220524052,43.63043055,116.93,116.86,85.5]
[1744220524270,1.57297509,116.92,116.9,85.5]
[1744220524454,1.5727424,116.96,116.92,171.0]
[1744220524763,41.99531262,116.99,116.9,85.5]
[1744220524974,1.57257172,116.95,116.86,13.5075]
[1744220525256,1.57257172,116.94,116.73,597.11531262]
[1744220525451,41.99531262,116.9,116.83,85.5]
[1744220525645,41.99531262,116.87,116.8,85.5]
[1744220525855,0.0581,116.85,116.77,171.0]
[1744220526059,41.99531262,116.83,116.75,85.5]
[1744220526357,41.99531262,116.8,116.69,4.3976]
[1744220526553,556.65450892,116.79,116.74,85.5]
[1744220526752,1.57450892,116.78,116.73,85.5]
[1744220526952,1.57450892,116.78,116.75,171.0]
[1744220527153,0.06056295,116.78,116.77,171.0]
[1744220527356,597.07531262,116.86,116.77,171.0]
[1744220527557,1.57437728,116.85,116.7,62.0]
[1744220527868,41.99531262,116.8,116.69,4.3976]
[1744220528154,41.99531262,116.77,116.7,171.0]
[1744220528359,41.99531262,116.73,116.65,4.2604]
[1744220528562,1.57437728,116.72,116.67,85.5]
[1744220528861,41.99531262,116.73,116.67,171.0]
[1744220529155,555.08,116.77,116.72,85.5]
[1744220529360,39.58021031,116.81,116.76,85.5]
[1744220529549,39.58021031,116.81,116.75,171.0]
[1744220529746,39.58021031,116.79,116.67,39.58021031]
[1744220529946,39.58021031,116.77,116.73,85.5]
[1744220530146,39.58021031,116.75,116.69,85.5]
[1744220530462,39.58021031,116.73,116.72,0.06218864]
[1744220530650,39.63665686,116.73,116.64,4.568]
[1744220530855,39.58021031,116.69,116.61,62.0]
[1744220531062,39.58021031,116.67,116.63,85.5]
[1744220531362,39.58021031,116.69,116.64,171.0]
[1744220531657,39.58021031,116.74,116.69,171.0]
[1744220531866,39.58021031,116.72,116.67,171.0]
[1744220532063,0.06474359,116.68,116.67,85.5]
[1744220532265,39.58021031,116.68,116.6,4.6388]
[1744220532462,555.28,116.68,116.64,85.5]
[1744220532762,39.58021031,116.64,116.57,171.0]
[1744220532964,39.58021031,116.6,116.57,171.0]
[1744220533162,39.58021031,116.64,116.59,171.0]
[1744220533358,594.86021031,116.68,116.63,85.5]
[1744220533559,555.28,116.68,116.66,85.5]
[1744220533760,555.28,116.68,116.67,171.0]
[1744220533974,594.86021031,116.68,116.62,85.5]
[1744220534194,39.58021031,116.65,116.61,171.0]
[1744220534356,39.58021031,116.63,116.6,85.5]
[1744220534667,39.58021031,116.63,116.58,85.5]
[1744220534876,39.58021031,116.61,116.56,171.0]
[1744220535050,39.64285419,116.63,116.58,85.5]
[1744220535256,39.64285419,116.63,116.6,171.0]
[1744220535561,4.5923,116.67,116.58,171.0]
[1744220535761,39.58021031,116.61,116.58,85.5]
[1744220535955,0.06266241,116.63,116.62,171.0]
[1744220536262,79.16042062,116.64,116.56,85.5]
[1744220536458,39.58021031,116.59,116.57,171.0]
[1744220536652,39.58021031,116.59,116.51,4.2339]
[1744220536856,39.58021031,116.64,116.56,171.0]
[1744220537057,39.58021031,116.63,116.59,85.5]
[1744220537265,39.58021031,116.63,116.61,85.5]
[1744220537560,0.05654301,116.62,116.58,85.5]
[1744220537755,39.58021031,116.59,116.54,171.0]
[1744220537955,39.58021031,116.56,116.5,0.02]
[1744220538255,39.58021031,116.53,116.52,85.5]
[1744220538465,39.58021031,116.55,116.53,171.0]
[1744220538869,39.58021031,116.55,116.54,171.0]
[1744220539173,39.58021031,116.6,116.54,85.5]
[1744220539465,39.58021031,116.58,116.56,85.5]
[1744220539766,555.76,116.57,116.5,0.02]
[1744220539968,39.58021031,116.57,116.54,85.5]
[1744220540173,39.58021031,116.57,116.54,171.0]
[1744220540365,39.58021031,116.55,116.54,0.05615724]
[1744220540671,39.63957153,116.57,116.54,0.05615724]
[1744220540867,39.58021031,116.55,116.5,0.02]
[1744220541073,39.58021031,116.54,116.51,171.0]
[1744220541260,39.63957153,116.57,116.5,0.02]
[1744220541261,39.58021031,116.52,116.5,0.02]
[1744220541561,39.58021031,116.52,116.42,4.6021]
[1744220541755,555.76,116.55,116.51,171.0]
[1744220541954,555.76,116.55,116.53,85.5]
[1744220542160,0.05483211,116.54,116.52,85.5]
[1744220542364,0.05483211,116.54,116.45,39.58021031]
[1744220542563,39.58021031,116.58,116.53,171.0]
[1744220542777,39.58021031,116.65,116.61,171.0]
[1744220542960,39.58021031,116.65,116.62,171.0]
[1744220543162,79.16042062,116.64,116.57,85.5]
[1744220543365,79.16042062,116.58,116.44,39.58021031]
[1744220543569,39.58021031,116.52,116.5,171.0]
[1744220543765,79.2151585,116.52,116.48,85.5]
[1744220543977,39.58021031,116.49,116.43,8.8787]
[1744220544163,39.58021031,116.46,116.36,4.255]
[1744220544357,39.58021031,116.46,116.42,171.0]
[1744220544564,0.05752917,116.47,116.42,85.5]
[1744220544768,595.52021031,116.48,116.45,171.0]
[1744220544961,39.58021031,116.5,116.47,171.0]
[1744220545158,39.58021031,116.52,116.48,85.5]
[1744220545479,0.06033575,116.48,116.39,39.58021031]
[1744220545780,39.58021031,116.46,116.42,85.5]
[1744220545959,39.58021031,116.44,116.4,85.5]
[1744220546158,39.58021031,116.41,116.35,4.6237]
[1744220546368,39.58021031,116.41,116.38,85.5]
[1744220546557,39.58021031,116.39,116.34,0.02]
[1744220546764,39.58021031,116.41,116.38,85.5]
[1744220546966,0.05467646,116.38,116.37,171.0]
[1744220547175,0.05467646,116.38,116.35,85.5]
[1744220547370,39.58021031,116.37,116.34,85.52]
[1744220547672,39.58021031,116.37,116.34,0.02]
[1744220547873,39.58021031,116.35,116.3,1.71969045]
[1744220548068,0.0574206,116.38,116.3,1.71969045]
[1744220548069,39.58021031,116.33,116.3,172.71969045]
[1744220548264,595.72021031,116.4,116.36,85.5]
[1744220548265,556.14,116.4,116.36,85.5]
[1744220548470,39.58021031,116.39,116.36,85.5]
[1744220548677,39.58021031,116.39,116.3,1.71969045]
[1744220548678,1.58041316,116.38,116.32,39.58021031]
[1744220548881,0.06322575,116.39,116.37,171.0]
[1744220549070,556.44,116.54,116.43,171.0]
[1744220549289,556.44,116.54,116.45,171.0]
[1744220549471,39.58021031,116.47,116.45,85.5]
[1744220549770,39.58021031,116.47,116.41,8.5958]
[1744220549965,39.58021031,116.47,116.33,312.8072]
[1744220549966,39.58021031,116.49,116.46,171.0]
[1744220550168,79.16042062,116.47,116.4,85.5]
[1744220550363,39.58021031,116.44,116.43,0.05804718]
[1744220550562,0.05626464,116.45,116.33,312.8072]
[1744220550767,39.58021031,116.48,116.44,85.5]
[1744220550973,556.54,116.54,116.5,85.5]
[1744220551378,41.15874872,116.53,116.41,39.58021031]
[1744220551581,1.57883816,116.52,116.47,85.5]
[1744220551883,0.05729715,116.5,116.47,171.0]
[1744220552176,0.05729715,116.5,116.41,39.58021031]
[1744220552383,39.58021031,116.49,116.43,171.0]
[1744220552683,1.57853841,116.53,116.47,85.5]
[1744220552876,1.57853841,116.53,116.5,171.0]
[1744220553077,1.57853841,116.53,116.51,85.5]
[1744220553266,1.57853841,116.53,116.52,171.0]
[1744220553471,556.54,116.61,116.52,179.588]
[1744220553667,1.57753353,116.6,116.58,171.0]
[1744220553980,179.17204577,116.75,116.68,85.5]
[1744220554175,139.59183546,116.75,116.7,171.0]
[1744220554483,11.5590079,116.74,116.68,85.5]
[1744220554679,51.13921821,116.74,116.69,85.5]
[1744220554886,0.06101971,116.72,116.7,0.05584761]
[1744220555381,0.06101971,116.72,116.59,53.21671031]
[1744220555594,0.06101971,116.72,116.7,0.05880257]
[1744220555878,1.57604465,116.73,116.63,39.58021031]
[1744220556085,11.5590079,116.74,116.72,171.0]
[1744220556277,11.5590079,116.74,116.73,210.58021031]
[1744220556471,93.25705444,116.76,116.73,85.5]
[1744220556691,31.32962219,116.76,116.75,171.0]
[1744220557681,194.35059972,116.78,116.75,48.14021031]
[1744220557882,556.54,116.85,116.77,39.58021031]
[1744220558092,556.54,116.85,116.75,39.58021031]
[1744220558278,596.12021031,116.85,116.74,62.0]
[1744220558478,556.54,116.85,116.74,101.58021031]
[1744220558789,556.54,116.85,116.77,8.5695]
[1744220558986,556.54,116.85,116.76,39.58021031]
[1744220559284,0.05559643,116.81,116.8,39.58021031]
[1744220559482,0.05559643,116.81,116.8,48.14761031]
[1744220559688,48.54531031,116.9,116.76,304.0]
[1744220559885,39.58021031,116.86,116.75,39.58021031]
[1744220560181,39.64563683,116.82,116.7,39.58021031]
[1744220560378,39.58021031,116.78,116.71,8.5739]
[1744220560574,39.58021031,116.83,116.7,39.58021031]
[1744220560778,39.58021031,116.87,116.74,39.58021031]
[1744220560979,39.58021031,116.79,116.68,39.58021031]
[1744220561285,39.58021031,116.81,116.64,39.58021031]
[1744220561486,0.05490331,116.75,116.72,0.06346118]
[1744220561889,39.58021031,116.82,116.6,859.9]
[1744220562193,39.58021031,116.75,116.64,39.58021031]
[1744220562388,39.58021031,116.75,116.63,8.5799]
[1744220562389,39.58021031,116.73,116.63,8.5799]
[1744220562594,39.58021031,116.73,116.62,39.58021031]
[1744220562796,555.9,116.74,116.62,39.58021031]
[1744220562985,555.9,116.74,116.64,39.58021031]
[1744220563295,0.06380007,116.69,116.66,0.06285108]
[1744220563694,39.64401038,116.69,116.56,39.58021031]
[1744220563885,0.06380007,116.69,116.62,39.58021031]
[1744220564292,43.93451031,116.73,116.62,39.58021031]
[1744220564595,43.93451031,116.73,116.6,39.58021031]
[1744220564800,4.3543,116.73,116.62,39.58021031]
[1744220564997,4.3543,116.73,116.58,39.58021031]
[1744220564998,0.06039253,116.69,116.66,39.64621245]
[1744220565294,39.58021031,116.79,116.67,62.0]
[1744220565495,4.2325,116.8,116.72,39.58021031]
[1744220565688,4.2325,116.8,116.67,62.0]
[1744220565689,595.30021031,116.82,116.7,39.58021031]
[1744220565888,555.72,116.82,116.72,39.58021031]
[1744220566088,41.2916599,116.86,116.7,343.58021031]
[1744220566296,555.74,116.89,116.78,39.58021031]
[1744220566495,9.02,116.93,116.82,39.58021031]
[1744220566705,555.74,116.96,116.86,39.58021031]
[1744220566886,39.58021031,116.95,116.84,39.58021031]
[1744220567081,0.05536634,116.89,116.86,0.05834087]
[1744220567294,0.05536634,116.89,116.77,39.58021031]
[1744220567295,39.63557665,116.89,116.77,39.58021031]
[1744220567599,39.63557665,116.89,116.73,859.74]
[1744220567600,39.58021031,116.85,116.7,343.58021031]
[1744220567899,39.58021031,116.87,116.76,39.58021031]
[1744220568293,555.74,116.88,116.78,39.58021031]
[1744220568492,39.58021031,116.91,116.78,39.58021031]
[1744220568690,4.2276,116.99,116.86,39.58021031]
[1744220568891,4.2276,116.99,116.9,39.58021031]
[1744220569090,9.02,117.0,116.91,62.0]
[1744220569291,48.60021031,117.0,116.91,62.0]
[1744220569492,39.58021031,116.98,116.91,62.0]
[1744220570002,0.06007931,116.96,116.93,0.05884387]
[1744220570392,39.58021031,116.95,116.93,0.05884387]
[1744220570697,39.58021031,116.95,116.84,39.58021031]
[1744220570888,0.06007931,116.96,116.84,39.58021031]
[1744220571090,9.02,117.0,116.89,39.58021031]
[1744220571293,39.58021031,117.06,116.89,343.58021031]
[1744220571496,39.58021031,117.02,116.92,39.58021031]
[1744220571712,555.28,117.02,116.88,39.58021031]
[1744220571890,39.58021031,116.98,116.96,0.06394821]
[1744220572100,39.58021031,116.98,116.84,39.58021031]
[1744220572305,43.82381031,117.0,116.88,39.58021031]
[1744220572605,1.5723165,116.99,116.88,39.58021031]
[1744220572804,43.82381031,117.0,116.88,39.58021031]
[1744220573305,1.57214805,116.99,116.88,304.0]
[1744220573493,0.05977702,116.95,116.89,101.58021031]
[1744220573699,0.05977702,116.95,116.89,62.0]
[1744220574297,0.05977702,116.95,116.85,39.58021031]
[1744220574501,0.05977702,116.95,116.82,669.0]
[1744220574703,39.58021031,116.96,116.86,39.58021031]
[1744220575004,0.06079833,116.9,116.86,39.58021031]
[1744220575201,39.58021031,116.98,116.89,8.5608]
[1744220575404,4.2436,117.0,116.9,39.58021031]
[1744220575798,39.58021031,116.98,116.86,343.58021031]
[1744220576000,4.2436,117.0,116.85,39.58021031]
[1744220576202,39.58021031,116.98,116.87,39.58021031]
[1744220576600,0.05666302,116.94,116.91,0.06382326]
[1744220577406,0.05666302,116.94,116.91,62.06382326]
[1744220577607,0.05666302,116.94,116.91,101.64403357]
[1744220577805,0.05666302,116.94,116.91,62.06382326]
[1744220578006,0.05666302,116.94,116.92,8.5586]
[1744220578311,0.05666302,116.94,116.91,62.06382326]
[1744220578511,0.05666302,116.94,116.91,0.06382326]
[1744220579099,0.05666302,116.94,116.82,343.58021031]
[1744220579304,0.05666302,116.94,116.86,39.58021031]
[1744220579511,39.58021031,116.97,116.86,39.58021031]
[1744220580111,39.58021031,116.89,116.77,39.58021031]
[1744220580311,39.58021031,116.89,116.77,343.58021031]
[1744220580498,39.64386408,116.93,116.83,39.58021031]
[1744220580699,1.57300846,116.92,116.83,39.58021031]
[1744220580900,39.58021031,116.95,116.83,39.58021031]
[1744220581106,0.05843222,116.89,116.85,39.58021031]
[1744220581313,1.57304702,116.95,116.87,39.58021031]
[1744220581516,554.78,116.97,116.9,39.58021031]
[1744220581706,594.36021031,116.97,116.88,62.0]
[1744220582014,1.57255459,116.96,116.83,343.58021031]
[1744220582307,554.78,116.97,116.85,39.58021031]
[1744220582608,0.05787081,116.91,116.88,0.05953626]
[1744220582812,39.58021031,116.89,116.77,343.58021031]
[1744220583110,595.93347515,116.88,116.72,39.58021031]
[1744220583307,39.58021031,116.81,116.69,39.58021031]
[1744220583515,39.58021031,116.79,116.67,39.58021031]
[1744220583706,39.58021031,116.77,116.67,39.58021031]
[1744220583914,554.78,116.8,116.69,39.58021031]
[1744220584106,0.05886847,116.73,116.65,39.58021031]
[1744220584305,39.58021031,116.75,116.6,744.82409588]
[1744220584511,1.57466447,116.74,116.6,744.82409588]
[1744220584710,554.78,116.8,116.71,39.58021031]
[1744220584902,39.58021031,116.85,116.73,39.58021031]
[1744220585210,39.58021031,116.83,116.72,62.0]
[1744220585426,1.57428068,116.84,116.63,39.58021031]
[1744220585427,39.58021031,116.73,116.63,39.58021031]
[1744220585601,39.58021031,116.73,116.61,39.58021031]
[1744220585809,39.58021031,116.71,116.65,8.5783]
[1744220586006,0.05846725,116.68,116.65,0.06391871]